[Event "GER-ch Youth U10w 2019"]
[Site "Willingen"]
[Date "2019.06.15"]
[Round "11.2"]
[White "Mirnaya, Veronika"]
[Black "Halas, Neele Zoe"]
[Result "1-0"]
[ECO "D05"]
[WhiteElo "1237"]
[BlackElo "1109"]
[Annotator "NA"]
[PlyCount "73"]
[EventDate "2019.06.07"]
[EventType "swiss"]
[EventRounds "11"]
[EventCountry "GER"]
[SourceTitle "playchess.com"]
[Source "ChessBase"]
[SourceQuality "1"]
[TimeControl "40/4500+30:900+30"]

1. d4 {[%emt 0:00:00]} d5 {[%emt 0:00:00]} 2. Nf3 {[%emt 0:00:00]} Nf6 {[%emt 0:00:00]} 3. e3 {[%emt 0:00:23]} e6 {[%emt 0:00:33]} 4. c3 {[%emt 0:00:26]} Be7 {[%emt 0:00:43]} 5. Bd3 {[%emt 0:00:19]} O-O {[%emt 0:02:37]} 6. O-O {[%emt 0:00:33]} Nbd7 {[%emt 0:02:22]} 7. Nbd2 {[%emt 0:01:00]} c6 {[%emt 0:01:12]} 8. Re1 {[%emt 0:00:54]} Re8 {[%emt 0:01:23]} 9. e4 {[%emt 0:02:17]} Nf8 {[%emt 0:07:18]} 10. e5 {[%emt 0:03:02]} Nh5 {[%emt 0:05:38]} 11. Nf1 {[%emt 0:05:09]} g6 {[%emt 0:04:53]} 12. Bh6 {[%emt 0:03:53]} Ng7 {[%emt 0:00:38]} 13. Ng3 {[%emt 0:02:20]} Bh4 {[%emt 0:06:41]} 14. Ne2 {[%emt 0:09:48]} Nf5 {[%emt 0:05:11]} 15. Bxf8 {[%emt 0:05:15]} Rxf8 {[%emt 0:00:17]} 16. Nxh4 {[%emt 0:02:18]} Nxh4 {[%emt 0:00:14]} 17. Qd2 {[%emt 0:00:55]} Kg7 {[%emt 0:02:54]} 18. Nf4 {[%emt 0:04:57]} Nf5 {[%emt 0:06:53]} 19. g3 {[%emt 0:10:53]} Bd7 {[%emt 0:03:09]} 20. h4 {[%emt 0:02:06]} h5 {[%emt 0:04:29]} 21. Nh3 {[%emt 0:08:12]} Rc8 {[%emt 0:04:32]} 22. Bxf5 {[%emt 0:02:30]} exf5 {[%emt 0:00:15]} 23. Ng5 {[%emt 0:00:58]} Be6 {[%emt 0:01:19]} 24. Qd3 {[%emt 0:01:16]} Qd7 {[%emt 0:05:07]} 25. b3 {[%emt 0:01:23]} f6 {[%emt 0:05:13]} 26. Nxe6+ {[%emt 0:01:51]} Qxe6 {[%emt 0:01:45]} 27. exf6+ {[%emt 0:00:14]} Qxf6 {[%emt 0:00:13]} 28. Re5 {[%emt 0:00:33]} Rfe8 {[%emt 0:00:23]} 29. Rae1 {[%emt 0:00:30]} Rxe5 {[%emt 0:00:50]} 30. dxe5 {[%emt 0:00:35]} Qe6 {[%emt 0:00:08]} 31. Qd4 {[%emt 0:03:20]} a6 {[%emt 0:02:05]} 32. Qb6 {[%emt 0:00:57]} Qe7 {[%emt 0:00:50]} 33. Qd4 {[%emt 0:01:01]} Qe6 {[%emt 0:01:16]} 34. Qc5 {[%emt 0:03:17]} Re8 {[%emt 0:01:05]} 35. Kf1 {[%emt 0:01:21]} Qe7 {[%emt 0:00:25]} 36. Qxe7+ {[%emt 0:00:12]} Rxe7 {[%emt 0:00:06]} 37. f4 {[%emt 0:00:20] normal} 1-0

[Event "GER-ch Youth U10w 2019"]
[Site "Willingen"]
[Date "2019.06.15"]
[Round "11.3"]
[White "Haug, Mara"]
[Black "Trunz, Tamila"]
[Result "0-1"]
[ECO "C53"]
[WhiteElo "1097"]
[BlackElo "1273"]
[Annotator "NA"]
[PlyCount "50"]
[EventDate "2019.06.07"]
[EventType "swiss"]
[EventRounds "11"]
[EventCountry "GER"]
[SourceTitle "playchess.com"]
[Source "ChessBase"]
[SourceQuality "1"]
[TimeControl "40/4500+30:900+30"]

1. e4 {[%emt 0:00:00]} e5 {[%emt 0:00:00]} 2. Nf3 {[%emt 0:00:00]} Nc6 {[%emt 0:00:00]} 3. Bc4 {[%emt 0:00:38]} Bc5 {[%emt 0:00:09]} 4. c3 {[%emt 0:00:53]} d6 {[%emt 0:00:40]} 5. d4 {[%emt 0:06:35]} exd4 {[%emt 0:00:53]} 6. cxd4 {[%emt 0:00:11]} Bb4+ {[%emt 0:00:37]} 7. Nc3 {[%emt 0:00:48]} Bg4 {[%emt 0:00:55]} 8. Qd3 {[%emt 0:02:28]} Nf6 {[%emt 0:01:53]} 9. d5 {[%emt 0:08:35]} Bxf3 {[%emt 0:01:33]} 10. Qxf3 {[%emt 0:01:08]} Ne5 {[%emt 0:01:22]} 11. Qe2 {[%emt 0:02:20]} Qe7 {[%emt 0:02:36]} 12. Bb3 {[%emt 0:04:18]} Ng6 {[%emt 0:05:22]} 13. Bc2 {[%emt 0:03:40]} O-O {[%emt 0:01:55]} 14. O-O {[%emt 0:01:17]} Bxc3 {[%emt 0:01:41]} 15. bxc3 {[%emt 0:01:26]} Nxd5 {[%emt 0:05:08]} 16. c4 {[%emt 0:05:01]} Nf6 {[%emt 0:02:39]} 17. f4 {[%emt 0:03:49]} Rfe8 {[%emt 0:04:59]} 18. f5 {[%emt 0:01:20]} Ne5 {[%emt 0:02:18]} 19. Bb2 {[%emt 0:06:30]} Rad8 {[%emt 0:02:40]} 20. Rab1 {[%emt 0:04:59]} b6 {[%emt 0:01:35]} 21. Ba4 {[%emt 0:02:30]} Ned7 {[%emt 0:02:50]} 22. Bxf6 {[%emt 0:01:16]} Qxf6 {[%emt 0:00:30]} 23. Kh1 {[%emt 0:08:29]} Qd4 {[%emt 0:02:18]} 24. Rf4 {[%emt 0:03:32]} Re7 {[%emt 0:08:17]} 25. Qg4 {[%emt 0:02:49]} Nf6 {[%emt 0:06:17] normal} 0-1

[Event "GER-ch Youth U10w 2019"]
[Site "Willingen"]
[Date "2019.06.15"]
[Round "11.4"]
[White "Jannicke, Svea"]
[Black "Glotz, Diana"]
[Result "0-1"]
[ECO "A04"]
[WhiteElo "1062"]
[BlackElo "1244"]
[Annotator "NA"]
[PlyCount "81"]
[EventDate "2019.06.07"]
[EventType "swiss"]
[EventRounds "11"]
[EventCountry "GER"]
[SourceTitle "playchess.com"]
[Source "ChessBase"]
[SourceQuality "1"]
[TimeControl "40/4500+30:900+30"]

1. Nf3 {[%emt 0:00:00]} d6 {[%emt 0:00:00]} 2. c4 {[%emt 0:00:00]} e5 {[%emt 0:00:13]} 3. d3 {[%emt 0:00:00]} Nf6 {[%emt 0:00:35]} 4. Nc3 {[%emt 0:00:03]} Bg4 {[%emt 0:00:44]} 5. g3 {[%emt 0:00:35]} Nc6 {[%emt 0:00:26]} 6. Bg2 {[%emt 0:00:09]} Be7 {[%emt 0:00:25]} 7. b3 {[%emt 0:00:34]} O-O {[%emt 0:00:42]} 8. O-O {[%emt 0:00:06]} Qd7 {[%emt 0:02:53]} 9. Bb2 {[%emt 0:00:08]} Bh3 {[%emt 0:00:50]} 10. Qd2 {[%emt 0:00:22]} Bxg2 {[%emt 0:01:49]} 11. Kxg2 {[%emt 0:00:08]} Ne8 {[%emt 0:02:16]} 12. Nd5 {[%emt 0:00:22]} f5 {[%emt 0:11:08]} 13. Nxe7+ {[%emt 0:01:05]} Qxe7 {[%emt 0:00:57]} 14. e4 {[%emt 0:03:05]} fxe4 {[%emt 0:03:53]} 15. dxe4 {[%emt 0:00:11]} Qf6 {[%emt 0:01:22]} 16. Nh4 {[%emt 0:08:32]} Nd4 {[%emt 0:13:58]} 17. Bxd4 {[%emt 0:01:25]} exd4 {[%emt 0:01:01]} 18. Rad1 {[%emt 0:01:52]} c5 {[%emt 0:00:53]} 19. a3 {[%emt 0:00:57]} Qe5 {[%emt 0:01:31]} 20. f3 {[%emt 0:03:48]} Rc8 {[%emt 0:09:49]} 21. Qd3 {[%emt 0:11:30]} Nf6 {[%emt 0:04:03]} 22. g4 {[%emt 0:05:25]} h5 {[%emt 0:08:02]} 23. h3 {[%emt 0:00:20]} Rfe8 {[%emt 0:04:18]} 24. Rde1 {[%emt 0:04:00]} Qg5 {[%emt 0:00:21]} 25. Kg3 {[%emt 0:01:56]} hxg4 {[%emt 0:00:53]} 26. hxg4 {[%emt 0:00:00]} Qe5+ {[%emt 0:01:53]} 27. f4 {[%emt 0:00:45]} Qe6 {[%emt 0:00:26]} 28. Kf3 {[%emt 0:07:18]} Qxg4+ {[%emt 0:00:26]} 29. Kf2 {[%emt 0:01:24]} Qxh4+ {[%emt 0:00:11]} 30. Ke2 {[%emt 0:01:23]} Qg4+ {[%emt 0:00:26]} 31. Kd2 {[%emt 0:01:18]} Qe6 {[%emt 0:00:48]} 32. e5 {[%emt 0:01:50]} Nd7 {[%emt 0:02:09]} 33. f5 {[%emt 0:01:20]} Qh6+ {[%emt 0:00:24]} 34. Kd1 {[%emt 0:00:30]} dxe5 {[%emt 0:00:26]} 35. Rh1 {[%emt 0:01:02]} Qc6 {[%emt 0:01:14]} 36. Reg1 {[%emt 0:02:38]} e4 {[%emt 0:00:49]} 37. Qg3 {[%emt 0:01:09]} Re7 {[%emt 0:01:57]} 38. Qh4 {[%emt 0:02:30]} Nf6 {[%emt 0:04:05]} 39. Qg5 {[%emt 0:00:50]} e3 {[%emt 0:02:44] normal} 40. Rh6 {[%emt 0:01:43]} Qf3+ {[%emt 0:00:36]} 41. Kc1 {[%emt 0:15:37] normal} 0-1

[Event "GER-ch Youth U10w 2019"]
[Site "Willingen"]
[Date "2019.06.15"]
[Round "11.5"]
[White "Oellrich, Emma"]
[Black "Bauer, Laura Sophie"]
[Result "1-0"]
[ECO "B43"]
[WhiteElo "1484"]
[BlackElo "1356"]
[Annotator "NA"]
[PlyCount "64"]
[EventDate "2019.06.07"]
[EventType "swiss"]
[EventRounds "11"]
[EventCountry "GER"]
[SourceTitle "playchess.com"]
[Source "ChessBase"]
[SourceQuality "1"]
[TimeControl "40/4500+30:900+30"]

1. e4 {[%emt 0:00:00]} c5 {[%emt 0:00:00]} 2. Nf3 {[%emt 0:00:00]} a6 {[%emt 0:00:00]} 3. Nc3 {[%emt 0:00:00]} e6 {[%emt 0:00:21]} 4. d4 {[%emt 0:00:00]} cxd4 {[%emt 0:00:26]} 5. Nxd4 {[%emt 0:00:07]} Bb4 {[%emt 0:01:01]} 6. g3 {[%emt 0:02:56]} Nf6 {[%emt 0:01:52]} 7. Bg2 {[%emt 0:01:35]} O-O {[%emt 0:01:38]} 8. O-O {[%emt 0:00:32]} Bxc3 {[%emt 0:01:55]} 9. bxc3 {[%emt 0:00:14]} b5 {[%emt 0:01:51]} 10. e5 {[%emt 0:00:33]} Nd5 {[%emt 0:00:45]} 11. Ne2 {[%emt 0:00:25]} Bb7 {[%emt 0:01:39]} 12. Ba3 {[%emt 0:01:20]} Re8 {[%emt 0:02:17]} 13. Rb1 {[%emt 0:00:28]} Qc7 {[%emt 0:04:26]} 14. Bd6 {[%emt 0:01:47]} Qc8 {[%emt 0:00:41]} 15. a4 {[%emt 0:01:21]} Bc6 {[%emt 0:02:30]} 16. axb5 {[%emt 0:11:07]} axb5 {[%emt 0:00:34]} 17. Qd2 {[%emt 0:05:46]} h6 {[%emt 0:06:55]} 18. Nd4 {[%emt 0:00:39]} Qb7 {[%emt 0:10:23]} 19. c4 {[%emt 0:01:00]} Nc7 {[%emt 0:06:16]} 20. Bxc6 {[%emt 0:01:01]} dxc6 {[%emt 0:03:10]} 21. cxb5 {[%emt 0:02:51]} Nxb5 {[%emt 0:01:26]} 22. Nxb5 {[%emt 0:02:57]} cxb5 {[%emt 0:04:08]} 23. c4 {[%emt 0:00:56]} Qf3 {[%emt 0:05:04]} 24. cxb5 {[%emt 0:01:16]} Rd8 {[%emt 0:02:07]} 25. Qb2 {[%emt 0:05:08]} g5 {[%emt 0:03:30]} 26. Qb3 {[%emt 0:01:23]} Qg4 {[%emt 0:03:10]} 27. Be7 {[%emt 0:00:46]} Rd4 {[%emt 0:01:09]} 28. Bf6 {[%emt 0:00:48]} h5 {[%emt 0:00:37]} 29. Qe3 {[%emt 0:02:49]} Re4 {[%emt 0:03:06]} 30. Qb6 {[%emt 0:04:02]} Nd7 {[%emt 0:03:18]} 31. Qb7 {[%emt 0:00:23]} Rf8 {[%emt 0:00:10]} 32. Be7 {[%emt 0:01:45]} h4 {[%emt 0:01:22] normal} 1-0

[Event "GER-ch Youth U10w 2019"]
[Site "Willingen"]
[Date "2019.06.15"]
[Round "11.6"]
[White "Heutling, Sarah"]
[Black "Bakó, Evelin"]
[Result "1-0"]
[ECO "B48"]
[WhiteElo "1147"]
[BlackElo "1152"]
[Annotator "NA"]
[PlyCount "60"]
[EventDate "2019.06.07"]
[EventType "swiss"]
[EventRounds "11"]
[EventCountry "GER"]
[SourceTitle "playchess.com"]
[Source "ChessBase"]
[SourceQuality "1"]
[TimeControl "40/4500+30:900+30"]

1. e4 {[%emt 0:00:00]} c5 {[%emt 0:00:00]} 2. Nf3 {[%emt 0:00:00]} e6 {[%emt 0:00:00]} 3. d4 {[%emt 0:00:00]} cxd4 {[%emt 0:00:24]} 4. Nxd4 {[%emt 0:00:00]} Nc6 {[%emt 0:00:42]} 5. Nc3 {[%emt 0:00:13]} Qc7 {[%emt 0:00:49]} 6. Be3 {[%emt 0:00:27]} Nf6 {[%emt 0:01:01]} 7. Bd3 {[%emt 0:00:24]} a6 {[%emt 0:01:20]} 8. O-O {[%emt 0:00:27]} b5 {[%emt 0:00:42]} 9. a3 {[%emt 0:02:06]} Bb7 {[%emt 0:01:32]} 10. Qd2 {[%emt 0:03:21]} Bd6 {[%emt 0:01:21]} 11. h3 {[%emt 0:00:26]} O-O {[%emt 0:01:50]} 12. Kh1 {[%emt 0:01:54]} b4 {[%emt 0:01:33]} 13. axb4 {[%emt 0:00:15]} Bxb4 {[%emt 0:01:14]} 14. f4 {[%emt 0:02:48]} Nxd4 {[%emt 0:01:01]} 15. Bxd4 {[%emt 0:00:15]} Nxe4 {[%emt 0:00:30]} 16. Qe3 {[%emt 0:01:50]} Nxc3 {[%emt 0:00:48]} 17. bxc3 {[%emt 0:00:38]} Bd6 {[%emt 0:07:33]} 18. Qg3 {[%emt 0:00:55]} f6 {[%emt 0:01:06]} 19. Qh4 {[%emt 0:01:07]} h6 {[%emt 0:02:47]} 20. Qh5 {[%emt 0:01:24]} f5 {[%emt 0:01:46]} 21. Qg6 {[%emt 0:00:18]} e5 {[%emt 0:01:06]} 22. fxe5 {[%emt 0:01:19]} Bxe5 {[%emt 0:04:20]} 23. Bxf5 {[%emt 0:01:58]} Bxd4 {[%emt 0:07:40]} 24. Qh7+ {[%emt 0:00:21]} Kf7 {[%emt 0:00:10]} 25. Bg6+ {[%emt 0:00:45]} Ke6 {[%emt 0:02:59]} 26. cxd4 {[%emt 0:00:17]} Qc6 {[%emt 0:01:16]} 27. Rae1+ {[%emt 0:00:52]} Kd6 {[%emt 0:01:00]} 28. Rg1 {[%emt 0:01:05]} Rf2 {[%emt 0:02:39]} 29. Be4 {[%emt 0:00:42]} Qb6 {[%emt 0:02:54]} 30. Qxg7 {[%emt 0:01:27]} Kc7 {[%emt 0:04:57] normal} 1-0

[Event "GER-ch Youth U10w 2019"]
[Site "Willingen"]
[Date "2019.06.15"]
[Round "11.6"]
[White "Heutling, Sarah"]
[Black "Bako, Evelin"]
[Result "1-0"]
[ECO "B48"]
[WhiteElo "1147"]
[BlackElo "1152"]
[Annotator "NA"]
[PlyCount "77"]
[EventDate "2019.06.07"]
[EventType "swiss"]
[EventRounds "11"]
[EventCountry "GER"]
[SourceTitle "playchess.com"]
[Source "ChessBase"]
[SourceQuality "1"]
[TimeControl "40/4500+30:900+30"]

1. e4 {[%emt 0:00:00]} c5 {[%emt 0:00:00]} 2. Nf3 {[%emt 0:00:00]} e6 {[%emt 0:00:00]} 3. d4 {[%emt 0:00:00]} cxd4 {[%emt 0:00:24]} 4. Nxd4 {[%emt 0:00:00]} Nc6 {[%emt 0:00:42]} 5. Nc3 {[%emt 0:00:13]} Qc7 {[%emt 0:00:49]} 6. Be3 {[%emt 0:00:27]} Nf6 {[%emt 0:01:01]} 7. Bd3 {[%emt 0:00:24]} a6 {[%emt 0:01:20]} 8. O-O {[%emt 0:00:27]} b5 {[%emt 0:00:42]} 9. a3 {[%emt 0:02:06]} Bb7 {[%emt 0:01:32]} 10. Qd2 {[%emt 0:03:21]} Bd6 {[%emt 0:01:21]} 11. h3 {[%emt 0:00:26]} O-O {[%emt 0:01:50]} 12. Kh1 {[%emt 0:01:54]} b4 {[%emt 0:01:33]} 13. axb4 {[%emt 0:00:15]} Bxb4 {[%emt 0:01:14]} 14. f4 {[%emt 0:02:48]} Nxd4 {[%emt 0:01:01]} 15. Bxd4 {[%emt 0:00:15]} Nxe4 {[%emt 0:00:30]} 16. Qe3 {[%emt 0:01:50]} Nxc3 {[%emt 0:00:48]} 17. bxc3 {[%emt 0:00:38]} Bd6 {[%emt 0:07:33]} 18. Qg3 {[%emt 0:00:55]} f6 {[%emt 0:01:06]} 19. Qh4 {[%emt 0:01:07]} h6 {[%emt 0:02:47]} 20. Qh5 {[%emt 0:01:24]} f5 {[%emt 0:01:46]} 21. Qg6 {[%emt 0:00:18]} e5 {[%emt 0:01:06]} 22. fxe5 {[%emt 0:01:19]} Bxe5 {[%emt 0:04:20]} 23. Bxf5 {[%emt 0:01:58]} Bxd4 {[%emt 0:07:40]} 24. Qh7+ {[%emt 0:00:21]} Kf7 {[%emt 0:00:10]} 25. Bg6+ {[%emt 0:00:45]} Ke6 {[%emt 0:02:59]} 26. cxd4 {[%emt 0:00:17]} Qc6 {[%emt 0:01:16]} 27. Rae1+ {[%emt 0:00:52]} Kd6 {[%emt 0:01:00]} 28. Rg1 {[%emt 0:01:05]} Rf2 {[%emt 0:02:39]} 29. Be4 {[%emt 0:00:42]} Qb6 {[%emt 0:02:54]} 30. Qxg7 {[%emt 0:01:27]} Kc7 {[%emt 0:04:57]} 31. Qg3+ {[%emt 0:02:35]} d6 {[%emt 0:01:09]} 32. Qxf2 {[%emt 0:00:07]} Bxe4 {[%emt 0:01:25]} 33. Rxe4 {[%emt 0:01:30]} Qc6 {[%emt 0:01:57]} 34. Re7+ {[%emt 0:00:54]} Kb6 {[%emt 0:00:11]} 35. d5+ {[%emt 0:00:32]} Qc5 {[%emt 0:00:16]} 36. Rb1+ {[%emt 0:00:15]} Ka5 {[%emt 0:00:19]} 37. Qxc5+ {[%emt 0:01:03]} dxc5 {[%emt 0:00:16]} 38. c4 {[%emt 0:00:48]} h5 {[%emt 0:00:23]} 39. Re2 {[%emt 0:00:06] normal} 1-0